fUSD/lending_fUSD_20240521
["ID","MTS","AMOUNT","RATE_DAILY","PERIOD"]
[327705228,1716330661184,-332.1,0.000343,2]
[327705229,1716330661194,-150.0,0.0003434,2]
[327705230,1716330661203,-1197.41049514,0.00034385,6]
[327705231,1716330661213,-151.0,0.000344,2]
[327705232,1716330661223,-157.052206,0.00034448,36]
[327705233,1716330661232,-154.47,0.00034475,2]
[327705234,1716330661242,-155.23385423,0.00034498,4]
[327705235,1716330661252,-155.25430839,0.00034498,4]
[327705236,1716330661263,-2596.0710139,0.00034498,4]
[327705237,1716330661272,-365.13082167,0.00034498,4]
[327705238,1716330661282,-155.1988971,0.00034499,4]
[327705239,1716330661292,-3457.34079695,0.00034499,4]
[327705240,1716330661302,-158.03224443,0.00034515,7]
[327705241,1716330661312,-549.24,0.0003452,6]
[327705242,1716330661323,-347.97995297,0.0003452,6]
[327705243,1716330661332,-587.1,0.0003452,6]
[327705244,1716330661341,-1028.32,0.0003452,6]
[327705245,1716330661352,-628.86,0.0003452,6]
[327705246,1716330661363,-500.0,0.0003452,6]
[327705247,1716330661376,-698.35,0.0003452,6]
[327705248,1716330661385,-817.87,0.0003452,6]
[327705249,1716330661396,-1529.98,0.0003452,6]
[327705250,1716330661406,-7703.78,0.0003452,6]
[327705251,1716330661416,-4254.81,0.0003452,6]
[327705252,1716330661425,-1676.45,0.0003452,6]
[327705253,1716330661435,-1312.87,0.0003452,6]
[327705254,1716330661445,-698.95,0.0003452,6]
[327705255,1716330661456,-579.22,0.0003452,6]
[327705256,1716330661466,-1366.16,0.0003452,6]
[327705257,1716330661476,-577.7,0.0003452,6]
[327705258,1716330661486,-500.0,0.0003452,6]
[327705259,1716330661496,-500.0,0.0003452,6]
[327705260,1716330661505,-576.47,0.0003452,6]
[327705261,1716330661515,-576.85,0.0003452,6]
[327705262,1716330661525,-4027.79,0.0003452,6]
[327705263,1716330661534,-3926.42,0.0003452,6]
[327705264,1716330661547,-500.0,0.0003452,6]
[327705265,1716330661556,-500.0,0.0003452,6]
[327705266,1716330661566,-500.0,0.0003452,6]
[327705267,1716330661575,-500.0,0.0003452,6]
[327705268,1716330661585,-411.66316639,0.0003452,6]
[327705269,1716330661595,-559.94,0.0003452,6]
[327705270,1716330661605,-500.0,0.0003452,6]
[327705271,1716330661615,-500.0,0.0003452,6]
[327705272,1716330661628,-787.25,0.0003452,6]
[327705273,1716330661639,-1823.06,0.0003452,6]
[327705274,1716330661649,-618.35,0.0003452,6]
[327705275,1716330661658,-1467.8,0.0003452,6]
[327705276,1716330661667,-962.2,0.0003452,6]
[327705277,1716330661677,-645.4,0.0003452,6]
[327705278,1716330661687,-500.0,0.0003452,6]
[327705279,1716330661697,-500.0,0.0003452,6]
[327705280,1716330661707,-500.0,0.0003452,6]
[327705281,1716330661716,-1188.21,0.0003452,6]
[327705282,1716330661726,-579.42,0.0003452,6]
[327705283,1716330661735,-562.99,0.0003452,6]
[327705284,1716330661745,-630.75,0.0003452,6]
[327705285,1716330661755,-500.0,0.0003452,6]
[327705286,1716330661765,-690.64,0.0003452,6]
[327705287,1716330661774,-2844.34,0.0003452,6]
[327705288,1716330661784,-500.0,0.0003452,6]
[327705289,1716330661796,-756.94,0.0003452,6]
[327705290,1716330661806,-500.0,0.0003452,6]
[327705291,1716330661815,-500.0,0.0003452,6]
[327705292,1716330661826,-878.11,0.0003452,6]
[327705293,1716330661836,-533.1,0.0003452,6]
[327705294,1716330661845,-500.0,0.0003452,6]
[327705295,1716330661856,-2346.81,0.0003452,6]
[327705296,1716330661866,-500.0,0.0003452,6]
[327705297,1716330661875,-1061.92,0.0003452,6]
[327705298,1716330661886,-603.1,0.0003452,6]
[327705299,1716330661897,-678.87,0.0003452,6]
[327705300,1716330661907,-683.48,0.0003452,6]
[327705301,1716330661918,-1131.45,0.0003452,6]
[327705302,1716330661927,-10687.0,0.0003452,6]
[327705303,1716330661937,-2733.01,0.0003452,6]
[327705304,1716330661947,-500.0,0.0003452,6]
[327705305,1716330661956,-500.0,0.0003452,6]
[327705306,1716330661965,-1035.99,0.0003452,6]
[327705307,1716330661975,-1127.8,0.0003452,6]
[327705308,1716330661985,-230.5288348,0.0003452,6]
[327705309,1716330661994,-954.96,0.0003452,6]
[327705310,1716330662004,-602.8,0.0003452,6]
[327705311,1716330662014,-500.0,0.0003452,6]
[327705312,1716330662024,-2414.4,0.0003452,6]
[327705313,1716330662034,-500.0,0.0003452,6]
[327705314,1716330662046,-150.0,0.00034548,10]
[327705315,1716330662055,-182.677248,0.00034553,2]
[327705316,1716330662064,-181.696989,0.00034553,2]
[327705317,1716330662074,-156.014629,0.00034553,2]
[327705318,1716330662084,-358.582094,0.00034553,2]
[327705319,1716330662093,-3096.80864,0.00034553,2]
[327705320,1716330662103,-185.708529,0.00034553,2]
[327705321,1716330662112,-9295.35583,0.00034553,2]
[327705322,1716330662121,-3842.892483,0.00034553,2]
[327705323,1716330662131,-9094.62006,0.00034553,2]
[327705324,1716330662140,-172.190305,0.00034553,2]
[327705325,1716330662149,-172.227896,0.00034553,2]
[327705326,1716330662159,-6063.998608,0.00034553,2]
[327705327,1716330662168,-3588.658871,0.00034553,2]
[327705328,1716330662178,-3036.470444,0.00034553,2]
[327705329,1716330662188,-4002.016228,0.00034553,2]
[327705330,1716330662197,-1871.119962,0.00034553,2]
[327705331,1716330662207,-157.052206,0.00034648,34]
[327705332,1716330662217,-1197.41049514,0.00034724,7]
[327705333,1716330662227,-1257.45183325,0.00034794,2]
[327705334,1716330662236,-603.69550177,0.00034794,2]
[327705335,1716330662246,-549.24,0.00034794,6]
[327705336,1716330662255,-587.1,0.00034794,6]
[327705337,1716330662265,-1028.32,0.00034794,6]
[327705338,1716330662274,-628.86,0.00034794,6]
[327705339,1716330662284,-500.0,0.00034794,6]
[327705340,1716330662295,-698.35,0.00034794,6]
[327705341,1716330662304,-817.87,0.00034794,6]
[327705342,1716330662313,-1529.98,0.00034794,6]
[327705343,1716330662323,-7703.78,0.00034794,6]
[327705344,1716330662332,-4254.81,0.00034794,6]
[327705345,1716330662343,-1676.45,0.00034794,6]
[327705346,1716330662353,-1312.87,0.00034794,6]
[327705347,1716330662367,-698.95,0.00034794,6]
[327705348,1716330662377,-579.22,0.00034794,6]
[327705349,1716330662387,-1366.16,0.00034794,6]
[327705350,1716330662397,-577.7,0.00034794,6]
[327705351,1716330662407,-500.0,0.00034794,6]
[327705352,1716330662417,-500.0,0.00034794,6]
[327705353,1716330662426,-576.47,0.00034794,6]
[327705354,1716330662437,-576.85,0.00034794,6]
[327705355,1716330662447,-4027.79,0.00034794,6]
[327705356,1716330662458,-3926.42,0.00034794,6]
[327705357,1716330662469,-500.0,0.00034794,6]
[327705358,1716330662478,-500.0,0.00034794,6]
[327705359,1716330662488,-500.0,0.00034794,6]
[327705360,1716330662500,-500.0,0.00034794,6]
[327705361,1716330662510,-559.94,0.00034794,6]
[327705362,1716330662519,-500.0,0.00034794,6]
[327705363,1716330662531,-500.0,0.00034794,6]
[327705364,1716330662546,-787.25,0.00034794,6]
[327705365,1716330662557,-1823.06,0.00034794,6]
[327705366,1716330662568,-618.35,0.00034794,6]
[327705367,1716330662578,-1467.8,0.00034794,6]
[327705368,1716330662588,-962.2,0.00034794,6]
[327705369,1716330662599,-645.4,0.00034794,6]
[327705370,1716330662609,-500.0,0.00034794,6]
[327705371,1716330662619,-500.0,0.00034794,6]
[327705372,1716330662629,-500.0,0.00034794,6]
[327705373,1716330662639,-1188.21,0.00034794,6]
[327705374,1716330662650,-579.42,0.00034794,6]
[327705375,1716330662661,-562.99,0.00034794,6]
[327705376,1716330662671,-630.75,0.00034794,6]
[327705377,1716330662680,-500.0,0.00034794,6]
[327705378,1716330662690,-690.64,0.00034794,6]
[327705379,1716330662699,-2844.34,0.00034794,6]
[327705380,1716330662709,-500.0,0.00034794,6]
[327705381,1716330662718,-756.94,0.00034794,6]
[327705382,1716330662728,-500.0,0.00034794,6]
[327705383,1716330662737,-500.0,0.00034794,6]
[327705384,1716330662747,-878.11,0.00034794,6]
[327705385,1716330662756,-533.1,0.00034794,6]
[327705386,1716330662765,-500.0,0.00034794,6]
[327705387,1716330662774,-2346.81,0.00034794,6]
[327705388,1716330662784,-1061.92,0.00034794,6]
[327705389,1716330662795,-603.1,0.00034794,6]
[327705390,1716330662804,-678.87,0.00034794,6]
[327705391,1716330662813,-683.48,0.00034794,6]
[327705392,1716330662823,-1131.45,0.00034794,6]
[327705393,1716330662833,-10687.0,0.00034794,6]
[327705394,1716330662843,-2733.01,0.00034794,6]
[327705395,1716330662853,-500.0,0.00034794,6]
[327705396,1716330662862,-500.0,0.00034794,6]
[327705397,1716330662871,-1035.99,0.00034794,6]
[327705398,1716330662880,-1127.8,0.00034794,6]
[327705399,1716330662890,-954.96,0.00034794,6]
[327705400,1716330662941,-602.8,0.00034794,6]
[327705401,1716330662952,-500.0,0.00034794,6]
[327705402,1716330662961,-2414.4,0.00034794,6]
[327705403,1716330662970,-500.0,0.00034794,6]
[327705404,1716330662979,-460.48553823,0.000348,2]
[327705405,1716330662988,-287.96,0.00034828,2]
[327705406,1716330662998,-183.54652,0.00034834,2]
[327705407,1716330663007,-157.052206,0.00034848,34]
[327705408,1716330663017,-155.23263224,0.000349,2]
[327705409,1716330663026,-158.03224443,0.00034958,7]
[327705410,1716330663036,-278.52984609,0.00034974,5]
[327705411,1716330663048,-104640.91540621,0.00034974,2]
[327705412,1716330663058,-156.014629,0.00034974,2]
[327705413,1716330663067,-358.582094,0.00034974,2]
[327705414,1716330663077,-3096.80864,0.00034974,2]
[327705415,1716330663087,-185.708529,0.00034974,2]
[327705416,1716330663096,-9295.35583,0.00034974,2]
[327705417,1716330663105,-3842.892483,0.00034974,2]
[327705418,1716330663115,-9094.62006,0.00034974,2]
[327705419,1716330663125,-172.190305,0.00034974,2]
[327705420,1716330663135,-172.227896,0.00034974,2]
[327705421,1716330663144,-6063.998608,0.00034974,2]
[327705422,1716330663153,-3588.658871,0.00034974,2]
[327705423,1716330663163,-3036.470444,0.00034974,2]
[327705424,1716330663172,-4002.016228,0.00034974,2]
[327705425,1716330663181,-1871.119962,0.00034974,2]
[327705426,1716330663191,-19513.44777255,0.00034999,2]
[327705427,1716330663200,-50000.0,0.00035,15]
[327705428,1716330663209,-7174.68902174,0.00035,4]
[327705429,1716330663218,-1500.0,0.00035,2]
[327705430,1716330663227,-1500.0,0.00035,2]
[327705431,1716330663236,-1500.0,0.00035,2]
[327705432,1716330663246,-1500.0,0.00035,2]
[327705433,1716330663255,-1500.0,0.00035,2]
[327705434,1716330663265,-1500.0,0.00035,2]
[327705435,1716330663274,-1500.0,0.00035,2]
[327705436,1716330663283,-1500.0,0.00035,2]
[327705437,1716330663296,-1500.0,0.00035,2]
[327705438,1716330663305,-1647.33,0.00035,2]
[327705439,1716330663314,-328.0,0.00035,5]
[327705440,1716330663324,-10000.0,0.00035,10]
[327705441,1716330663334,-500.0,0.00035,10]
[327705442,1716330663344,-1287.67449963,0.00035,4]
[327705443,1716330663353,-382.81664414,0.00035,2]
[327705444,1716330663364,-155.0,0.00035,4]
[327705445,1716330663378,-154.999999,0.00035,2]
[327705446,1716330663387,-2000.0,0.00035,2]
[327705447,1716330663397,-2000.0,0.00035,2]
[327705448,1716330663408,-151.0,0.00035012,7]
[327705449,1716330663419,-151.0,0.00035012,7]
[327705450,1716330663429,-151.0,0.00035012,7]
[327705451,1716330663439,-151.0,0.00035012,7]
[327705452,1716330663449,-151.0,0.00035012,7]
[327705453,1716330663459,-225.62476768,0.00035012,2]
[327705454,1716330663468,-6985.47850093,0.00035012,2]
[327705455,1716330663478,-6559.63264427,0.00035012,4]
[327705456,1716330663487,-19748.31315776,0.00035012,4]
[327705457,1716330663497,-6960.01946172,0.00035012,2]
[327705458,1716330663506,-1617.97,0.00035012,58]
[327705459,1716330663515,-2005.31771201,0.00035012,7]
[327705460,1716330663525,-2019.49046311,0.00035012,20]
[327705461,1716330663534,-14439.26141672,0.00035012,3]
[327705462,1716330663543,-5171.1706141,0.00035012,3]
[327705463,1716330663552,-54482.62970367,0.00035012,3]
[327705464,1716330663562,-3860.05809644,0.00035012,3]
[327705465,1716330663571,-36077.72310022,0.00035012,20]
[327705466,1716330663581,-1033.0,0.00035012,120]
[327705467,1716330663590,-25543.94250713,0.00035012,30]
[327705468,1716330663599,-654.999999,0.00035012,2]
[327705469,1716330663609,-1688.77712753,0.00035012,120]
[327705470,1716330663619,-300.0,0.00035012,30]
[327705471,1716330663628,-289.69789433,0.00035012,2]
[327705472,1716330663638,-470.47731326,0.00035012,2]
[327705473,1716330663646,-386.64614295,0.00035012,2]
[327705474,1716330663655,-241.46891171,0.00035012,2]
[327705475,1716330663665,-318.24027199,0.00035012,2]
[327705476,1716330663674,-356.18952196,0.00035012,2]
[327705477,1716330663683,-339.01796997,0.00035012,2]
[327705478,1716330663692,-215.1322769,0.00035012,2]
[327705479,1716330663701,-157.052206,0.00035048,36]
[327705480,1716330663710,-1197.41049514,0.00035062,7]
[327705481,1716330663719,-549.24,0.00035068,6]
[327705482,1716330663728,-587.1,0.00035068,6]
[327705483,1716330663738,-1028.32,0.00035068,6]
[327705484,1716330663747,-628.86,0.00035068,6]
[327705485,1716330663756,-500.0,0.00035068,6]
[327705486,1716330663765,-698.35,0.00035068,6]
[327705487,1716330663774,-817.87,0.00035068,6]
[327705488,1716330663784,-1529.98,0.00035068,6]
[327705489,1716330663794,-7703.78,0.00035068,6]
[327705490,1716330663804,-4254.81,0.00035068,6]
[327705491,1716330663813,-1676.45,0.00035068,6]
[327705492,1716330663823,-1312.87,0.00035068,6]
[327705493,1716330663832,-698.95,0.00035068,6]
[327705494,1716330663842,-579.22,0.00035068,6]
[327705495,1716330663851,-1366.16,0.00035068,6]
[327705496,1716330663861,-577.7,0.00035068,6]
[327705497,1716330663871,-500.0,0.00035068,6]
[327705498,1716330663880,-500.0,0.00035068,6]
[327705499,1716330663890,-576.47,0.00035068,6]
[327705500,1716330663899,-576.85,0.00035068,6]
[327705501,1716330663909,-4027.79,0.00035068,6]
[327705502,1716330663919,-3926.42,0.00035068,6]
[327705503,1716330663928,-500.0,0.00035068,6]
[327705504,1716330663937,-500.0,0.00035068,6]
[327705505,1716330663947,-500.0,0.00035068,6]
[327705506,1716330663956,-500.0,0.00035068,6]
[327705507,1716330663966,-559.94,0.00035068,6]
[327705508,1716330663975,-500.0,0.00035068,6]
[327705509,1716330663984,-500.0,0.00035068,6]
[327705510,1716330663994,-787.25,0.00035068,6]
[327705511,1716330664003,-1823.06,0.00035068,6]
[327705512,1716330664013,-618.35,0.00035068,6]
[327705513,1716330664022,-1467.8,0.00035068,6]
[327705514,1716330664032,-962.2,0.00035068,6]
[327705515,1716330664043,-645.4,0.00035068,6]
[327705516,1716330664052,-500.0,0.00035068,6]
[327705517,1716330664063,-500.0,0.00035068,6]
[327705518,1716330664072,-500.0,0.00035068,6]
[327705519,1716330664082,-1188.21,0.00035068,6]
[327705520,1716330664091,-579.42,0.00035068,6]
[327705521,1716330664101,-562.99,0.00035068,6]
[327705522,1716330664111,-630.75,0.00035068,6]
[327705523,1716330664121,-500.0,0.00035068,6]
[327705524,1716330664130,-690.64,0.00035068,6]
[327705525,1716330664140,-2844.34,0.00035068,6]
[327705526,1716330664149,-500.0,0.00035068,6]
[327705527,1716330664158,-756.94,0.00035068,6]
[327705528,1716330664168,-500.0,0.00035068,6]
[327705529,1716330664177,-500.0,0.00035068,6]
[327705530,1716330664186,-878.11,0.00035068,6]
[327705531,1716330664196,-533.1,0.00035068,6]
[327705532,1716330664205,-500.0,0.00035068,6]
[327705533,1716330664215,-2346.81,0.00035068,6]
[327705534,1716330664224,-1061.92,0.00035068,6]
[327705535,1716330664234,-603.1,0.00035068,6]
[327705536,1716330664244,-678.87,0.00035068,6]
[327705537,1716330664253,-683.48,0.00035068,6]
[327705538,1716330664262,-1131.45,0.00035068,6]
[327705539,1716330664272,-10687.0,0.00035068,6]
[327705540,1716330664281,-2733.01,0.00035068,6]
[327705541,1716330664293,-500.0,0.00035068,6]
[327705542,1716330664302,-500.0,0.00035068,6]
[327705543,1716330664311,-1035.99,0.00035068,6]
[327705544,1716330664320,-1127.8,0.00035068,6]
[327705545,1716330664329,-954.96,0.00035068,6]
[327705546,1716330664338,-602.8,0.00035068,6]
[327705547,1716330664348,-500.0,0.00035068,6]
[327705548,1716330664358,-2414.4,0.00035068,6]
[327705549,1716330664371,-500.0,0.00035068,6]
[327705550,1716330664380,-399.04,0.000351,2]
[327705551,1716330664389,-332.1,0.000351,2]
[327705552,1716330664401,-153.38,0.000351,2]
[327705553,1716330664411,-153.38,0.000351,2]
[327705554,1716330664420,-153.38,0.000351,2]
[327705555,1716330664430,-153.38,0.000351,2]
[327705556,1716330664440,-153.38,0.000351,2]
[327705557,1716330664450,-153.38,0.000351,2]
[327705558,1716330664459,-153.38,0.000351,2]
[327705559,1716330664469,-153.38,0.000351,2]
[327705560,1716330664478,-153.38,0.000351,2]
[327705561,1716330664487,-153.38,0.000351,2]
[327705562,1716330664496,-3330.71,0.000351,2]
[327705563,1716330664505,-3330.71,0.000351,2]
[327705564,1716330664515,-3330.71,0.000351,2]
[327705565,1716330664524,-3330.71,0.000351,2]
[327705566,1716330664534,-3330.71,0.000351,2]
[327705567,1716330664543,-3330.71,0.000351,2]
[327705568,1716330664552,-3330.71,0.000351,2]
[327705569,1716330664562,-3330.71,0.000351,2]
[327705570,1716330664571,-3330.71,0.000351,2]
[327705571,1716330664580,-3330.71,0.000351,2]
[327705572,1716330664589,-3330.71,0.000351,2]
[327705573,1716330664599,-3330.71,0.000351,2]
[327705574,1716330664608,-3330.71,0.000351,2]
[327705575,1716330664617,-3330.71,0.000351,2]
[327705576,1716330664627,-3330.71,0.000351,2]
[327705577,1716330664637,-3330.71,0.000351,2]
[327705578,1716330664647,-3330.71,0.000351,2]
[327705579,1716330664657,-3330.71,0.000351,2]
[327705580,1716330664668,-3330.71,0.000351,2]
[327705581,1716330664678,-3330.71,0.000351,2]
[327705582,1716330664688,-157.052206,0.00035248,36]
[327705583,1716330664699,-549.24,0.00035342,6]
[327705584,1716330664709,-587.1,0.00035342,6]
[327705585,1716330664720,-1028.32,0.00035342,6]
[327705586,1716330664730,-628.86,0.00035342,6]
[327705587,1716330664740,-500.0,0.00035342,6]
[327705588,1716330664751,-698.35,0.00035342,6]
[327705589,1716330664761,-817.87,0.00035342,6]
[327705590,1716330664771,-1529.98,0.00035342,6]
[327705591,1716330664781,-7703.78,0.00035342,6]
[327705592,1716330664791,-4254.81,0.00035342,6]
[327705593,1716330664802,-1676.45,0.00035342,6]
[327705594,1716330664811,-1312.87,0.00035342,6]
[327705595,1716330664821,-698.95,0.00035342,6]
[327705596,1716330664831,-579.22,0.00035342,6]
[327705597,1716330664840,-1366.16,0.00035342,6]
[327705598,1716330664850,-577.7,0.00035342,6]
[327705599,1716330664861,-500.0,0.00035342,6]
[327705600,1716330664872,-500.0,0.00035342,6]
[327705601,1716330664881,-576.47,0.00035342,6]
[327705602,1716330664891,-576.85,0.00035342,6]
[327705603,1716330664901,-4027.79,0.00035342,6]
[327705604,1716330664911,-3926.42,0.00035342,6]
[327705605,1716330664921,-500.0,0.00035342,6]
[327705606,1716330664930,-500.0,0.00035342,6]
[327705607,1716330664939,-500.0,0.00035342,6]
[327705608,1716330664949,-500.0,0.00035342,6]
[327705609,1716330664959,-559.94,0.00035342,6]
[327705610,1716330664969,-500.0,0.00035342,6]
[327705611,1716330664978,-500.0,0.00035342,6]
[327705612,1716330664988,-787.25,0.00035342,6]
[327705613,1716330664998,-1823.06,0.00035342,6]
[327705614,1716330665008,-618.35,0.00035342,6]
[327705615,1716330665018,-1467.8,0.00035342,6]
[327705616,1716330665028,-962.2,0.00035342,6]
[327705617,1716330665038,-645.4,0.00035342,6]
[327705618,1716330665051,-500.0,0.00035342,6]
[327705619,1716330665060,-500.0,0.00035342,6]
[327705620,1716330665069,-546.91858746,0.00035342,6]
[327705621,1716330665079,-1188.21,0.00035342,6]
[327705622,1716330665089,-579.42,0.00035342,6]
[327705623,1716330665099,-562.99,0.00035342,6]
[327705624,1716330665108,-630.75,0.00035342,6]
[327705625,1716330665119,-500.0,0.00035342,6]
[327705626,1716330665128,-690.64,0.00035342,6]
[327705627,1716330665138,-2844.34,0.00035342,6]
[327705628,1716330665148,-500.0,0.00035342,6]
[327705629,1716330665158,-756.94,0.00035342,6]
[327705630,1716330665167,-500.0,0.00035342,6]
[327705631,1716330665178,-595.07384775,0.00035342,6]
[327705632,1716330665187,-878.11,0.00035342,6]
[327705633,1716330665197,-533.1,0.00035342,6]
[327705634,1716330665206,-500.0,0.00035342,6]
[327705635,1716330665217,-2346.81,0.00035342,6]
[327705636,1716330665226,-1061.92,0.00035342,6]
[327705637,1716330665236,-678.87,0.00035342,6]
[327705638,1716330665246,-603.1,0.00035342,6]
[327705639,1716330665256,-683.48,0.00035342,6]
[327705640,1716330665265,-1131.45,0.00035342,6]
[327705641,1716330665276,-10687.0,0.00035342,6]
[327705642,1716330665286,-2733.01,0.00035342,6]
[327705643,1716330665297,-500.0,0.00035342,6]
[327705644,1716330665307,-500.0,0.00035342,6]
[327705645,1716330665316,-1035.99,0.00035342,6]
[327705646,1716330665326,-1127.8,0.00035342,6]
[327705647,1716330665336,-954.96,0.00035342,6]
[327705648,1716330665345,-602.8,0.00035342,6]
[327705649,1716330665356,-500.0,0.00035342,6]
[327705650,1716330665367,-2414.4,0.00035342,6]
[327705651,1716330665378,-500.0,0.00035342,6]
[327705652,1716330665388,-182.677248,0.00035396,2]
[327705653,1716330665398,-181.696989,0.00035396,2]
[327705654,1716330665408,-169.510985,0.00035396,2]
[327705655,1716330665418,-156.014629,0.00035396,2]
[327705656,1716330665427,-358.582094,0.00035396,2]
[327705657,1716330665437,-3096.80864,0.00035396,2]
[327705658,1716330665450,-185.708529,0.00035396,2]
[327705659,1716330665460,-9295.35583,0.00035396,2]
[327705660,1716330665469,-3842.892483,0.00035396,2]
[327705661,1716330665479,-9094.62006,0.00035396,2]
[327705662,1716330665488,-172.190305,0.00035396,2]
[327705663,1716330665498,-172.227896,0.00035396,2]
[327705664,1716330665507,-6063.998608,0.00035396,2]
[327705665,1716330665516,-3588.658871,0.00035396,2]
[327705666,1716330665526,-3036.470444,0.00035396,2]
[327705667,1716330665536,-183.54652,0.00035396,2]
[327705668,1716330665547,-4002.016228,0.00035396,2]
[327705669,1716330665557,-1871.119962,0.00035396,2]
[327705670,1716330665566,-251.0,0.00035398,15]
[327705671,1716330665576,-18077.00816861,0.000354,2]
[327705672,1716330665586,-6634.16290803,0.000354,31]
[327705673,1716330665595,-1197.41049514,0.000354,8]
[327705674,1716330665605,-460.48553823,0.000354,2]
[327705675,1716330665614,-158.53,0.000354,7]
[327705676,1716330665624,-215.67001062,0.000354,2]
[327705677,1716330665633,-163.4608692,0.000354,2]
[327705678,1716330665643,-2497.89693473,0.000354,2]
[327705679,1716330665652,-157.052206,0.00035448,36]
[327705680,1716330665662,-2321.7852333,0.00035476,2]
[327705681,1716330665672,-1879.5720167,0.00035476,2]
[327705682,1716330665681,-1437.3588002,0.00035476,2]
[327705683,1716330665691,-995.1455837,0.00035476,2]
[327705684,1716330665700,-552.9323672,0.00035476,2]
[327705685,1716330665710,-54744.4922538,0.00035476,2]
[327705686,1716330665720,-44317.714764,0.00035476,2]
[327705687,1716330665730,-33890.9372743,0.00035476,2]
[327705688,1716330665740,-23464.1597845,0.00035476,2]
[327705689,1716330665750,-13037.3822948,0.00035476,2]
[327705690,1716330665759,-5768.5088876,0.00035476,2]
[327705691,1716330665769,-4669.8237753,0.00035476,2]
[327705692,1716330665778,-3571.138663,0.00035476,2]
[327705693,1716330665788,-2472.4535507,0.00035476,2]
[327705694,1716330665798,-1373.7684384,0.00035476,2]
[327705695,1716330665807,-503.0,0.00035477,15]
[327705696,1716330665817,-497.0,0.00035477,15]
[327705697,1716330665827,-405.91053631,0.00035496,60]
[327705698,1716330665836,-220.0,0.00035499,2]
[327705699,1716330665846,-220.0,0.00035499,2]
[327705700,1716330665855,-220.0,0.00035499,2]
[327705701,1716330665864,-203.0,0.00035499,2]
[327705702,1716330665874,-203.0,0.00035499,2]
[327705703,1716330665883,-203.0,0.00035499,2]
[327705704,1716330665892,-203.0,0.00035499,2]
[327705705,1716330665902,-203.0,0.00035499,2]
[327705706,1716330665912,-3742547.14566172,0.000355,5]
[327705707,1716330666053,-500.0,0.00032876,6]
[327705708,1716330666063,-151.0,0.00035012,7]
[327705709,1716330666073,-106.8792,0.000355,5]
[327705710,1716330666086,-331.63639484,0.000355,5]
[327705711,1716330666098,-322.2668776,0.000355,5]
[327705712,1716330666109,-860.73934,0.000355,5]
[327705713,1716330666280,-577.47,0.0003041,6]
[327705714,1716330666290,-500.0,0.0003041,6]
[327705715,1716330666302,-577.47,0.00030684,6]
[327705716,1716330666312,-577.47,0.00030958,6]
[327705717,1716330666322,-1225.0,0.00031141,2]
[327705718,1716330666332,-577.47,0.00031232,6]
[327705719,1716330666342,-577.47,0.00031506,6]
[327705720,1716330666352,-577.47,0.0003178,6]
[327705721,1716330666364,-577.47,0.00032054,6]
[327705722,1716330666375,-500.0,0.00032328,6]
[327705723,1716330666386,-577.47,0.00032328,6]
[327705724,1716330666397,-500.0,0.00032602,6]
[327705725,1716330666549,-577.47,0.00032602,6]
[327705726,1716330666563,-500.0,0.00032876,6]
[327705727,1716330666574,-500.0,0.0003315,6]